fUST/lending_fUST_20240322
["ID","MTS","AMOUNT","RATE_DAILY","PERIOD"]
[320031822,1711089044729,-151.0,0.00030136,2]
[320031823,1711089044742,-500.0,0.00030136,2]
[320031824,1711089044751,-275.63845429,0.00030136,2]
[320031825,1711089044760,-933.22,0.00030136,2]
[320031826,1711089044769,-646.4651221,0.00030136,2]
[320031827,1711089044778,-500.0,0.00030136,2]
[320031828,1711089044789,-500.0,0.00030136,2]
[320031829,1711089044800,-500.0,0.00030136,2]
[320031830,1711089044810,-500.0,0.00030136,2]
[320031831,1711089044819,-500.0,0.00030136,2]
[320031832,1711089044829,-670.79,0.00030136,2]
[320031833,1711089044838,-1032.23,0.00030136,2]
[320031834,1711089044847,-512.96,0.00030136,2]
[320031835,1711089044857,-500.0,0.00030136,2]
[320031836,1711089044867,-500.0,0.00030136,2]
[320031837,1711089044876,-502.10698507,0.00030136,2]
[320031838,1711089044885,-559.42,0.00030136,2]
[320031839,1711089044894,-500.0,0.00030136,2]
[320031840,1711089044904,-500.0,0.00030136,2]
[320031841,1711089044913,-500.0,0.00030136,2]
[320031842,1711089044923,-500.0,0.00030136,2]
[320031843,1711089044932,-500.0,0.00030136,2]
[320031844,1711089044941,-500.0,0.00030136,2]
[320031845,1711089044950,-500.0,0.00030136,2]
[320031846,1711089044959,-247.99509562,0.00030136,2]
[320031847,1711089044969,-604.91,0.00030136,2]
[320031848,1711089044979,-500.0,0.00030136,2]
[320031849,1711089044988,-500.0,0.00030136,2]
[320031850,1711089044998,-500.0,0.00030136,2]
[320031851,1711089045007,-502.32996417,0.00030136,2]
[320031852,1711089045017,-500.0,0.00030136,2]
[320031853,1711089045026,-500.0,0.00030136,2]
[320031854,1711089045035,-674.24,0.00030136,2]
[320031855,1711089045045,-500.5688312,0.00030136,2]
[320031856,1711089045056,-1033.94,0.00030136,2]
[320031857,1711089045066,-508.97875966,0.00030136,2]
[320031858,1711089045075,-500.0,0.00030136,2]
[320031859,1711089045085,-500.0,0.00030136,2]
[320031860,1711089045095,-500.38263884,0.00030136,2]
[320031861,1711089045104,-501.34505652,0.00030136,2]
[320031862,1711089045114,-501.025861,0.00030136,2]
[320031863,1711089045123,-500.41726184,0.00030136,2]
[320031864,1711089045133,-500.0,0.00030136,2]
[320031865,1711089045142,-500.0,0.00030136,2]
[320031866,1711089045151,-959.39,0.00030136,2]
[320031867,1711089045161,-500.0,0.00030136,2]
[320031868,1711089045170,-231.15958752,0.00030136,2]
[320031870,1711090029146,-1579.39534766,0.00025999,2]
[320031871,1711090035117,-1024.16235166,0.00025999,2]
[320031872,1711090035139,-164.1148457,0.00026,3]
[320031873,1711090035162,-968.01620827,0.00026,30]
[320031874,1711090050158,-31.98379173,0.00026,30]
[320031875,1711090050180,-150.0,0.00028036,2]
[320031876,1711090050201,-184.207561,0.00028449,2]
[320031877,1711090050221,-213.785394,0.00028696,2]
[320031878,1711090050242,-182.055641,0.00029355,2]
[320031879,1711090050262,-170.869594,0.00029355,2]
[320031880,1711090050282,-184.207561,0.00029419,2]
[320031881,1711090050302,-481.11676275,0.00029835,2]
[320031918,1711090233498,-154.82968734,0.00027318,2]
[320031920,1711090233507,-150.0,0.00027319,2]
[320031921,1711090233517,-177.191203,0.00028611,2]
[320031923,1711090233526,-2620.2839321,0.00029109,2]
[320031925,1711090233535,-5169.56205362,0.00029537,2]
[320031927,1711090233544,-177.191203,0.00029586,2]
[320031928,1711090233553,-170.869594,0.00029845,2]
[320031930,1711090233563,-5128.36066154,0.0003,2]
[320031932,1711090233573,-412.34689881,0.0003,3]
[320031934,1711090233582,-290.0,0.00030036,2]
[320031935,1711090233590,-13227.42558386,0.00030036,2]
[320031937,1711090233599,-235.88702099,0.00030036,2]
[320031939,1711090233609,-182.055641,0.00030089,2]
[320031941,1711090233617,-400.0,0.000301,2]
[320031942,1711090233626,-800.0,0.000301,2]
[320031944,1711090233635,-800.0,0.000301,2]
[320031946,1711090233644,-5916.62447138,0.00030104,5]
[320031948,1711090233652,-905.54982572,0.00030134,4]
[320031950,1711090233661,-611.24805464,0.00030134,4]
[320031951,1711090233670,-624.41902234,0.00030134,2]
[320031953,1711090233678,-643.01181409,0.00030134,4]
[320031955,1711090233687,-189.99204491,0.00030134,2]
[320031957,1711090233696,-497.32069966,0.00030134,4]
[320031958,1711090233705,-367.6711612,0.00030134,2]
[320031960,1711090233714,-155.13779927,0.00030134,4]
[320031962,1711090233723,-207.06690328,0.00030134,4]
[320031964,1711090233732,-476.51140381,0.00030134,4]
[320031966,1711090233741,-2747.07703662,0.00030134,120]
[320031967,1711090233750,-561.97535589,0.00030134,4]
[320031969,1711090233759,-500.0,0.00030134,2]
[320031971,1711090233768,-500.0,0.00030134,2]
[320031973,1711090233776,-500.0,0.00030134,2]
[320031975,1711090233785,-500.0,0.00030134,2]
[320031976,1711090233794,-250.0,0.00030134,2]
[320031978,1711090233803,-203.57287567,0.00030135,4]
[320031980,1711090233812,-500.0,0.00030135,2]
[320031982,1711090233823,-13589.99690435,0.00030136,3]
[320031983,1711090233832,-500.0,0.00030136,2]
[320031985,1711090233841,-500.0,0.00030136,2]
[320031987,1711090233850,-7607.54045418,0.00030136,4]
[320031989,1711090233859,-500.47128142,0.00030136,2]
[320031991,1711090233869,-500.0,0.00030136,2]
[320031992,1711090233878,-500.0,0.00030136,2]
[320031994,1711090233889,-258.06180717,0.00030136,2]
[320031996,1711090233899,-500.54013591,0.00030136,2]
[320031997,1711090233908,-501.41885224,0.00030136,2]
[320031998,1711090233917,-500.0,0.00030136,2]
[320031999,1711090233927,-625.71,0.00030136,2]
[320032000,1711090233936,-680.68,0.00030136,2]
[320032001,1711090233945,-500.0,0.00030136,2]
[320032002,1711090233954,-500.0,0.00030136,2]
[320032003,1711090233964,-500.0,0.00030136,2]
[320032004,1711090233973,-500.0,0.00030136,2]
[320032005,1711090233982,-151.0,0.00030136,2]
[320032006,1711090233991,-536.11,0.00030136,2]
[320032008,1711090234002,-500.0,0.00030136,2]
[320032010,1711090234012,-500.0,0.00030136,2]
[320032011,1711090234021,-500.0,0.00030136,2]
[320032013,1711090234030,-361.28634868,0.00030136,2]
[320032015,1711090234039,-500.0,0.00030136,2]
[320032016,1711090234049,-500.0,0.00030136,2]
[320032018,1711090234058,-500.0,0.00030136,2]
[320032020,1711090234068,-500.0,0.00030136,2]
[320032022,1711090234077,-500.0,0.00030136,2]
[320032023,1711090234087,-500.0,0.00030136,2]
[320032025,1711090234097,-500.0,0.00030136,2]
[320032027,1711090234110,-500.0,0.00030136,2]
[320032029,1711090234122,-500.0,0.00030136,2]
[320032031,1711090234131,-500.0,0.00030136,2]
[320032033,1711090234140,-500.74636841,0.00030136,2]
[320032035,1711090234150,-500.0,0.00030136,2]
[320032036,1711090234159,-504.25583823,0.00030136,2]
[320032038,1711090234169,-500.0,0.00030136,2]
[320032040,1711090234178,-500.0,0.00030136,2]
[320032042,1711090234189,-500.0,0.00030136,2]
[320032044,1711090234197,-812.09,0.00030136,2]
[320032045,1711090234206,-1036.05,0.00030136,2]
[320032047,1711090234215,-500.0,0.00030136,2]
[320032049,1711090234224,-465.06219202,0.00030136,2]
[320032050,1711090234232,-500.0,0.00030136,2]
[320032052,1711090234241,-500.73234157,0.00030136,2]
[320032054,1711090234250,-500.0,0.00030136,2]
[320032056,1711090234262,-500.0,0.00030136,2]
[320032058,1711090234277,-500.22586763,0.00030136,2]
[320032061,1711090234291,-668.14,0.00030136,2]
[320032063,1711090234306,-500.0,0.00030136,2]
[320032065,1711090234316,-500.0,0.00030136,2]
[320032067,1711090234327,-501.00665515,0.00030136,2]
[320032069,1711090234340,-500.0,0.00030136,2]
[320032071,1711090234354,-500.0,0.00030136,2]
[320032073,1711090234367,-500.0,0.00030136,2]
[320032074,1711090234381,-500.0,0.00030136,2]
[320032076,1711090234393,-500.0,0.00030136,2]
[320032077,1711090234406,-1943.49,0.00030136,2]
[320032079,1711090234418,-1943.49,0.00030136,2]
[320032080,1711090234429,-1152.18828697,0.00030136,2]
[320032081,1711090234448,-791.30171303,0.00030136,2]
[320032082,1711090234460,-1943.49,0.00030136,2]
[320032083,1711090234472,-1943.49,0.00030136,2]
[320032084,1711090234484,-1943.49,0.00030136,2]
[320032085,1711090234498,-1943.49,0.00030136,2]
[320032086,1711090234510,-1943.49,0.00030136,2]
[320032087,1711090234520,-1943.49,0.00030136,2]
[320032088,1711090234531,-500.0,0.00030136,2]
[320032089,1711090234545,-500.0,0.00030136,2]
[320032090,1711090234557,-644.62,0.00030136,2]
[320032091,1711090234571,-501.69758102,0.00030136,2]
[320032092,1711090234582,-642.84,0.00030136,2]
[320032093,1711090234593,-2185.51,0.00030136,2]
[320032094,1711090234606,-505.10339815,0.00030136,2]
[320032095,1711090234618,-2868.16,0.00030136,2]
[320032096,1711090234631,-500.0,0.00030136,2]
[320032097,1711090234644,-500.0,0.00030136,2]
[320032098,1711090234658,-500.0,0.00030136,2]
[320032099,1711090234672,-502.99723665,0.00030136,2]
[320032100,1711090234685,-526.04,0.00030136,2]
[320032101,1711090234695,-1968.07,0.00030136,2]
[320032102,1711090234706,-500.0,0.00030136,2]
[320032103,1711090234717,-500.0,0.00030136,2]
[320032104,1711090234728,-500.0,0.00030136,2]
[320032105,1711090234741,-502.36879751,0.00030136,2]
[320032106,1711090234752,-501.99369271,0.00030136,2]
[320032107,1711090234763,-500.0,0.00030136,2]
[320032108,1711090234776,-396.65777839,0.00030136,2]
[320032109,1711090234787,-500.0,0.00030136,2]
[320032110,1711090234797,-500.0,0.00030136,2]
[320032111,1711090234807,-500.0,0.00030136,2]
[320032112,1711090234820,-500.0,0.00030136,2]
[320032113,1711090234833,-990.86,0.00030136,2]
[320032114,1711090234843,-500.0,0.00030136,2]
[320032115,1711090234854,-500.0,0.00030136,2]
[320032116,1711090234871,-500.0,0.00030136,2]
[320032117,1711090234895,-646.15,0.00030136,2]
[320032118,1711090234912,-500.0,0.00030136,2]
[320032119,1711090234928,-270.72247596,0.00030136,2]
[320032120,1711090234942,-767.83,0.00030136,2]
[320032121,1711090234955,-1022.41,0.00030136,2]
[320032122,1711090234968,-384.92990209,0.00030136,2]
[320032123,1711090234982,-500.0,0.00030136,2]
[320032124,1711090234995,-1000.0,0.00030136,2]
[320032125,1711090235008,-500.0,0.00030136,2]
[320032126,1711090235021,-500.0,0.00030136,2]
[320032127,1711090235034,-500.0,0.00030136,2]
[320032128,1711090235048,-500.0,0.00030136,2]
[320032129,1711090235061,-500.0,0.00030136,2]
[320032130,1711090235076,-646.55665611,0.00030136,2]
[320032131,1711090235088,-500.0,0.00030136,2]
[320032132,1711090235105,-500.0,0.00030136,2]
[320032133,1711090235117,-500.0,0.00030136,2]
[320032134,1711090235130,-500.0,0.00030136,2]
[320032135,1711090235142,-747.76,0.00030136,2]
[320032136,1711090235154,-500.0,0.00030136,2]
[320032137,1711090235166,-500.0,0.00030136,2]
[320032138,1711090235178,-599.84,0.00030136,2]
[320032139,1711090235190,-500.0,0.00030136,2]
[320032140,1711090235203,-894.34,0.00030136,2]
[320032141,1711090235216,-500.0,0.00030136,2]
[320032142,1711090235228,-354.96374428,0.00030136,2]
[320032143,1711090235241,-500.0,0.00030136,2]
[320032144,1711090235253,-500.0,0.00030136,2]
[320032145,1711090235266,-500.0,0.00030136,2]
[320032146,1711090235278,-500.0,0.00030136,2]
[320032147,1711090235290,-501.75,0.00030136,2]
[320032148,1711090235302,-500.0,0.00030136,2]
[320032149,1711090235314,-500.0,0.00030136,2]
[320032150,1711090235328,-919.42,0.00030136,2]
[320032151,1711090235340,-504.15000414,0.00030136,2]
[320032152,1711090235353,-500.0,0.00030136,2]
[320032153,1711090235365,-3376.34,0.00030136,2]
[320032154,1711090235377,-500.0,0.00030136,2]
[320032155,1711090235390,-500.0,0.00030136,2]
[320032156,1711090235402,-500.0,0.00030136,2]
[320032157,1711090235414,-502.41418629,0.00030136,2]
[320032158,1711090235425,-1996.58,0.00030136,2]
[320032159,1711090235437,-500.0,0.00030136,2]
[320032160,1711090235449,-500.0,0.00030136,2]
[320032161,1711090235461,-500.0,0.00030136,2]
[320032162,1711090235473,-500.0,0.00030136,2]
[320032163,1711090235485,-2139.76,0.00030136,2]
[320032164,1711090235497,-500.05973297,0.00030136,2]
[320032165,1711090235509,-500.0,0.00030136,2]
[320032166,1711090235521,-649.20040764,0.00030136,2]
[320032167,1711090235533,-989.22,0.00030136,2]
[320032168,1711090235545,-500.0,0.00030136,2]
[320032169,1711090235555,-762.09,0.00030136,2]
[320032170,1711090235564,-500.0,0.00030136,2]
[320032171,1711090235576,-500.0,0.00030136,2]
[320032172,1711090235585,-2421.69,0.00030136,2]
[320032173,1711090235595,-596.38,0.00030136,2]
[320032174,1711090235605,-1577.14,0.00030136,2]
[320032175,1711090235782,-500.0,0.00030136,2]
[320032176,1711090235799,-500.0,0.00030136,2]
[320032177,1711090235809,-2021.3,0.00030136,2]
[320032178,1711090235818,-1597.68,0.00030136,2]
[320032179,1711090235829,-500.0,0.00030136,2]
[320032180,1711090235838,-500.0,0.00030136,2]
[320032181,1711090235848,-575.51,0.00030136,2]
[320032182,1711090235857,-500.78525822,0.00030136,2]
[320032183,1711090235867,-535.94,0.00030136,2]
[320032184,1711090235877,-500.0,0.00030136,2]
[320032185,1711090235886,-9110.01,0.00030136,2]
[320032186,1711090235896,-500.0,0.00030136,30]
[320032187,1711090235906,-500.0,0.00030136,2]
[320032188,1711090235915,-500.0,0.00030136,2]
[320032189,1711090235925,-500.0,0.00030136,2]
[320032190,1711090235937,-500.0,0.00030136,2]
[320032191,1711090235947,-2941.92,0.00030136,2]
[320032192,1711090235957,-500.0,0.00030136,2]
[320032193,1711090235967,-500.0,0.00030136,2]
[320032194,1711090235977,-2077.82,0.00030136,2]
[320032195,1711090235986,-506.65243167,0.00030136,2]
[320032196,1711090235996,-3449.41,0.00030136,2]
[320032197,1711090236006,-500.0,0.00030136,2]
[320032198,1711090236016,-816.6,0.00030136,2]
[320032199,1711090236026,-500.0,0.00030136,2]
[320032200,1711090236036,-500.0,0.00030136,2]
[320032201,1711090236046,-638.49,0.00030136,2]
[320032202,1711090236056,-3152.32,0.00030136,2]
[320032203,1711090236065,-628.01,0.00030136,2]
[320032204,1711090236077,-502.19195385,0.00030136,2]
[320032205,1711090236086,-500.0,0.00030136,2]
[320032206,1711090236096,-33296.94,0.00030136,2]
[320032207,1711090236109,-500.0,0.00030136,2]
[320032208,1711090236122,-500.0,0.00030136,2]
[320032209,1711090236131,-500.0,0.00030136,2]
[320032210,1711090236141,-500.0,0.00030136,2]
[320032211,1711090236150,-500.0,0.00030136,2]
[320032212,1711090236160,-500.0,0.00030136,2]
[320032213,1711090236170,-1178.12,0.00030136,2]
[320032214,1711090236179,-500.0,0.00030136,2]
[320032215,1711090236189,-500.0,0.00030136,2]
[320032216,1711090236199,-566.23,0.00030136,2]
[320032217,1711090236208,-500.0,0.00030136,2]
[320032218,1711090236218,-547.55,0.00030136,2]
[320032219,1711090236227,-1532.23,0.00030136,2]
[320032220,1711090236237,-9657.74,0.00030136,2]
[320032221,1711090236246,-3289.76,0.00030136,2]
[320032222,1711090236255,-413.74611458,0.00030136,2]
[320032223,1711090236264,-2045.32,0.00030136,2]
[320032224,1711090236273,-500.0,0.00030136,2]
[320032225,1711090236283,-500.0,0.00030136,2]
[320032226,1711090236295,-388.62588081,0.00030136,2]
[320032227,1711090236305,-500.0,0.00030136,2]
[320032228,1711090236314,-2330.12,0.00030136,2]
[320032229,1711090236325,-500.0,0.00030136,2]
[320032230,1711090236335,-500.0,0.00030136,2]
[320032231,1711090236345,-1124.57,0.00030136,2]
[320032232,1711090236356,-500.0,0.00030136,2]
[320032233,1711090236365,-1687.51,0.00030136,2]
[320032234,1711090236374,-503.65348306,0.00030136,2]
[320032235,1711090236383,-500.0,0.00030136,2]
[320032236,1711090236393,-500.0,0.00030136,2]
[320032237,1711090236402,-501.97414736,0.00030136,2]
[320032238,1711090236411,-500.0,0.00030136,2]
[320032239,1711090236421,-29400.12,0.00030136,2]
[320032240,1711090236430,-500.0,0.00030136,2]
[320032241,1711090236439,-502.58729336,0.00030136,2]
[320032242,1711090236448,-562.76,0.00030136,2]
[320032243,1711090236457,-500.23775745,0.00030136,2]
[320032244,1711090236467,-502.45,0.00030136,2]
[320032245,1711090236476,-500.0,0.00030136,2]
[320032246,1711090236485,-500.0,0.00030136,2]
[320032247,1711090236495,-500.0,0.00030136,2]
[320032248,1711090236504,-500.0,0.00030136,2]
[320032249,1711090236513,-500.0,0.00030136,2]
[320032250,1711090236523,-500.0,0.00030136,2]
[320032251,1711090236532,-500.0,0.00030136,2]
[320032252,1711090236541,-500.0,0.00030136,2]
[320032253,1711090236550,-5002.42,0.00030136,2]
[320032254,1711090236559,-500.34441712,0.00030136,2]
[320032255,1711090236570,-500.0,0.00030136,2]
[320032256,1711090236580,-684.08,0.00030136,2]
[320032257,1711090236589,-500.83262899,0.00030136,2]
[320032258,1711090236599,-500.0,0.00030136,2]
[320032259,1711090236609,-500.0,0.00030136,2]
[320032260,1711090236619,-3045.2,0.00030136,2]
[320032261,1711090236628,-374.0634275,0.00030136,2]
[320032262,1711090236639,-500.0,0.00030136,2]
[320032263,1711090236648,-2295.05,0.00030136,2]
[320032264,1711090236658,-500.0,0.00030136,2]
[320032265,1711090236667,-500.0,0.00030136,2]
[320032266,1711090236676,-508.08900967,0.00030136,2]
[320032267,1711090236685,-670.69,0.00030136,2]
[320032268,1711090236694,-359.87895884,0.00030136,2]
[320032269,1711090236703,-500.0,0.00030136,2]
[320032270,1711090236712,-501.1676717,0.00030136,2]
[320032271,1711090236721,-500.0,0.00030136,2]
[320032272,1711090236731,-500.0,0.00030136,2]
[320032273,1711090236740,-10072.32,0.00030136,2]
[320032274,1711090236749,-500.0,0.00030136,2]
[320032275,1711090236758,-1343.61,0.00030136,2]
[320032276,1711090236767,-712.06,0.00030136,2]
[320032277,1711090236777,-3976.87,0.00030136,2]
[320032278,1711090236787,-511.83372254,0.00030136,2]
[320032279,1711090236796,-2446.3,0.00030136,2]
[320032280,1711090236805,-500.0,0.00030136,2]
[320032281,1711090236814,-501.51073159,0.00030136,2]
[320032282,1711090236826,-504.1,0.00030136,2]
[320032283,1711090236836,-500.0,0.00030136,2]
[320032284,1711090236845,-500.0,0.00030136,2]
[320032285,1711090236854,-254.29666974,0.00030136,2]
[320032286,1711090236863,-500.0,0.00030136,2]
[320032287,1711090236872,-500.0,0.00030136,2]
[320032288,1711090236881,-2450.44,0.00030136,2]
[320032289,1711090236891,-501.2192326,0.00030136,2]
[320032290,1711090236900,-701.27,0.00030136,2]
[320032291,1711090236910,-501.3447409,0.00030136,2]
[320032292,1711090236919,-245.49783928,0.00030136,2]
[320032293,1711090236928,-500.0,0.00030136,2]
[320032294,1711090236937,-959.68,0.00030136,2]
[320032295,1711090236946,-500.0,0.00030136,2]
[320032296,1711090236955,-500.0,0.00030136,2]
[320032297,1711090236964,-565.56,0.00030136,2]
[320032298,1711090236974,-17976.15,0.00030136,2]
[320032299,1711090236983,-3930.8,0.00030136,2]
[320032300,1711090236992,-536.32,0.00030136,2]
[320032301,1711090237002,-552.34377062,0.00030136,2]
[320032302,1711090237010,-500.0,0.00030136,2]
[320032303,1711090237019,-1080.51,0.00030136,2]
[320032304,1711090237028,-500.0,0.00030136,2]
[320032305,1711090237037,-3055.45,0.00030136,2]
[320032306,1711090237046,-500.0,0.00030136,2]
[320032307,1711090237055,-505.45289468,0.00030136,2]
[320032308,1711090237064,-201.8047941,0.0003024,2]
[320032309,1711090237074,-153.0,0.0003024,2]
[320032310,1711090237082,-201.8047941,0.0003024,2]
[320032311,1711090237091,-170.869594,0.00030334,2]
[320032312,1711090237103,-7487.71015726,0.0003056,2]
[320032313,1711090237112,-177.191203,0.00030561,2]
[320032314,1711090237121,-3194.37883503,0.00030584,2]
[320032315,1711090237129,-1000.0,0.00030584,2]
[320032316,1711090237140,-800.0,0.000306,3]
[320032317,1711090237150,-1943.49,0.00030682,2]
[320032318,1711090237159,-1943.49,0.00030683,2]
[320032319,1711090237169,-1943.49,0.00030683,2]
[320032320,1711090237181,-1943.49,0.00030683,2]
[320032321,1711090237191,-1943.49,0.00030683,2]
[320032322,1711090237200,-1943.49,0.00030683,2]
[320032323,1711090237210,-1943.49,0.00030683,2]
[320032324,1711090237219,-1943.49,0.00030683,2]
[320032325,1711090237228,-500.0,0.00030684,2]
[320032326,1711090237238,-500.0,0.00030684,2]
[320032327,1711090237247,-261.10942718,0.00030684,2]
[320032328,1711090237256,-500.0,0.00030684,2]
[320032329,1711090237265,-500.0,0.00030684,2]
[320032330,1711090237274,-500.0,0.00030684,2]
[320032331,1711090237284,-625.71,0.00030684,2]
[320032332,1711090237293,-680.68,0.00030684,2]
[320032333,1711090237302,-500.0,0.00030684,2]
[320032334,1711090237311,-500.0,0.00030684,2]
[320032335,1711090237321,-500.0,0.00030684,2]
[320032336,1711090237330,-500.0,0.00030684,2]
[320032337,1711090237339,-151.0,0.00030684,2]
[320032338,1711090237349,-536.11,0.00030684,2]
[320032339,1711090237357,-500.0,0.00030684,2]
[320032340,1711090237366,-500.0,0.00030684,2]
[320032341,1711090237375,-500.0,0.00030684,2]
[320032342,1711090237385,-500.0,0.00030684,2]
[320032343,1711090237394,-500.0,0.00030684,2]
[320032344,1711090237404,-500.0,0.00030684,2]
[320032345,1711090237413,-500.0,0.00030684,2]
[320032346,1711090237422,-500.0,0.00030684,2]
[320032347,1711090237431,-500.0,0.00030684,2]
[320032348,1711090237441,-500.0,0.00030684,2]
[320032349,1711090237450,-500.0,0.00030684,2]
[320032350,1711090237459,-500.0,0.00030684,2]
[320032351,1711090237468,-500.0,0.00030684,2]
[320032352,1711090237477,-500.85560408,0.00030684,2]
[320032353,1711090237485,-558.0,0.00030684,2]
[320032354,1711090237494,-500.0,0.00030684,2]
[320032355,1711090237503,-812.09,0.00030684,2]
[320032356,1711090237512,-1036.05,0.00030684,2]
[320032357,1711090237521,-500.0,0.00030684,2]
[320032358,1711090237530,-194.48098306,0.00030684,2]
[320032359,1711090237539,-500.0,0.00030684,2]
[320032360,1711090237549,-500.0,0.00030684,2]
[320032361,1711090237559,-668.14,0.00030684,2]
[320032362,1711090237568,-500.0,0.00030684,2]
[320032363,1711090237578,-500.0,0.00030684,2]
[320032364,1711090237588,-500.0,0.00030684,2]
[320032365,1711090237597,-500.0,0.00030684,2]
[320032366,1711090237607,-500.0,0.00030684,2]
[320032367,1711090237616,-500.0,0.00030684,2]
[320032368,1711090237625,-500.0,0.00030684,2]
[320032369,1711090237635,-500.0,0.00030684,2]
[320032370,1711090237644,-500.0,0.00030684,2]
[320032371,1711090237654,-644.62,0.00030684,2]
[320032372,1711090237664,-642.84,0.00030684,2]
[320032373,1711090237674,-2185.51,0.00030684,2]
[320032374,1711090237682,-2868.16,0.00030684,2]
[320032375,1711090237691,-500.0,0.00030684,2]
[320032376,1711090237700,-500.0,0.00030684,2]
[320032377,1711090237709,-500.0,0.00030684,2]
[320032378,1711090237719,-526.04,0.00030684,2]
[320032379,1711090237729,-1968.07,0.00030684,2]
[320032380,1711090237738,-500.0,0.00030684,2]
[320032381,1711090237747,-500.0,0.00030684,2]
[320032382,1711090237756,-500.0,0.00030684,2]
[320032383,1711090237765,-500.0,0.00030684,2]
[320032384,1711090237773,-500.0,0.00030684,2]
[320032385,1711090237782,-500.0,0.00030684,2]
[320032386,1711090237791,-500.0,0.00030684,2]
[320032387,1711090237800,-500.0,0.00030684,2]
[320032388,1711090237809,-990.86,0.00030684,2]
[320032389,1711090237818,-500.0,0.00030684,2]
[320032390,1711090237828,-500.0,0.00030684,2]
[320032391,1711090237838,-500.0,0.00030684,2]
[320032392,1711090237847,-646.15,0.00030684,2]
[320032393,1711090237856,-501.99139233,0.00030684,2]
[320032394,1711090237865,-767.83,0.00030684,2]
[320032395,1711090237875,-1022.41,0.00030684,2]
[320032396,1711090237884,-500.0,0.00030684,2]
[320032397,1711090237893,-1000.0,0.00030684,2]
[320032398,1711090237903,-500.0,0.00030684,2]
[320032399,1711090237913,-500.0,0.00030684,2]
[320032400,1711090237922,-500.0,0.00030684,2]
[320032401,1711090237932,-500.0,0.00030684,2]
[320032402,1711090237941,-500.0,0.00030684,2]
[320032403,1711090237950,-500.0,0.00030684,2]
[320032404,1711090237960,-500.0,0.00030684,2]
[320032405,1711090237969,-500.0,0.00030684,2]
[320032406,1711090237978,-500.0,0.00030684,2]
[320032407,1711090237987,-747.76,0.00030684,2]
[320032408,1711090237997,-503.42498434,0.00030684,2]
[320032409,1711090238006,-502.2482328,0.00030684,2]
[320032410,1711090238016,-599.84,0.00030684,2]
[320032411,1711090238025,-500.0,0.00030684,2]
[320032412,1711090238035,-894.34,0.00030684,2]
[320032413,1711090238045,-500.0,0.00030684,2]
[320032414,1711090238054,-500.78656217,0.00030684,2]
[320032416,1711090238064,-500.0,0.00030684,2]
[320032418,1711090238074,-500.0,0.00030684,2]
[320032420,1711090238083,-500.0,0.00030684,2]
[320032422,1711090238094,-501.75,0.00030684,2]
[320032424,1711090238108,-500.0,0.00030684,2]
[320032426,1711090238117,-500.0,0.00030684,2]
[320032428,1711090238126,-919.42,0.00030684,2]
[320032430,1711090238136,-500.0,0.00030684,2]
[320032432,1711090238146,-3376.34,0.00030684,2]
[320032434,1711090238155,-500.0,0.00030684,2]
[320032435,1711090238165,-500.0,0.00030684,2]